bitfinex/quotes_BTCUSD_20251219
["timestamp","ask_amount","ask_price","bid_price","bid_amount"]
[1766128814278,0.0058,88113.0,88107.0,0.001099]
[1766128814687,0.0058,88113.0,88100.0,0.45254]
[1766128815063,0.0058,88113.0,88101.0,0.45254]
[1766128815285,0.62391,88107.0,88089.0,0.45254]
[1766128815522,1.32932032,88100.0,88090.0,0.0058]
[1766128815733,0.01363171,88099.0,88091.0,0.0058]
[1766128815936,0.62391,88107.0,88091.0,0.45834]
[1766128816352,0.62971,88107.0,88091.0,0.45834]
[1766128817151,0.62391,88120.0,88094.0,0.59204]
[1766128817355,1.95323032,88120.0,88097.0,0.45254]
[1766128817554,0.0058,88119.0,88099.0,0.45254]
[1766128818054,0.01780661,88127.0,88099.0,0.45254]
[1766128818055,0.0058,88127.0,88106.0,0.45254]
[1766128818280,0.02451369,88129.0,88115.0,0.45254]
[1766128818487,0.04544,88138.0,88129.0,0.000699]
[1766128818488,0.02451369,88133.0,88129.0,0.000699]
[1766128818641,0.0058,88136.0,88129.0,0.000699]
[1766128818856,0.01063809,88135.0,88116.0,0.45834]
[1766128819059,0.63454809,88135.0,88116.0,0.45834]
[1766128819268,0.0058,88136.0,88074.0,0.06198079]
[1766128819269,0.66025567,88119.0,88104.0,0.0058]
[1766128819495,1.32932032,88110.0,88101.0,0.0058]
[1766128819871,0.0058,88118.0,88101.0,0.0058]
[1766128820771,0.0058,88118.0,88102.0,0.45254]
[1766128822329,0.24411875,88118.0,88102.0,0.45254]
[1766128822527,0.01134919,88112.0,88101.0,0.0058]
[1766128822883,0.01134919,88112.0,88094.0,0.0058]
[1766128822884,0.0058,88111.0,88094.0,0.0058]
[1766128823426,0.0058,88111.0,88093.0,0.45254]
[1766128824404,0.0058,88111.0,88094.0,0.50023718]
[1766128824606,0.02915086,88132.0,88112.0,0.45254]
[1766128824607,0.04544,88127.0,88112.0,0.45254]
[1766128824811,0.0058,88126.0,88112.0,0.45254]
[1766128826128,0.0058,88126.0,88113.0,0.01361887]
[1766128826351,0.0058,88126.0,88114.0,0.45254]
[1766128827408,0.03634567,88115.0,88094.0,0.00010939]
[1766128827572,1.95323032,88104.0,88094.0,0.00010939]
[1766128827732,0.0058,88103.0,88094.0,0.00010939]
[1766128827930,0.62971,88103.0,88094.0,0.00010939]
[1766128828787,1.34066976,88110.0,88094.0,0.00010939]
[1766128829119,0.62391,88107.0,88094.0,0.00010939]
[1766128830273,0.01135022,88104.0,88094.0,0.00010939]
[1766128830703,0.86225798,88107.0,88094.0,0.00010939]
[1766128830917,0.01135022,88104.0,88094.0,0.00010939]
[1766128831130,0.01135215,88089.0,88079.0,0.45254]
[1766128831353,0.0058,88088.0,88068.0,0.45834]
[1766128831761,0.01135241,88087.0,88068.0,0.45834]
[1766128831998,0.01715228,88088.0,88072.0,0.45254]
[1766128831999,0.0058,88088.0,88072.0,0.45254]
[1766128832226,0.0058,88088.0,88073.0,0.45254]
[1766128832646,0.0058,88088.0,88074.0,0.45254]
[1766128833459,0.01715228,88088.0,88074.0,0.45254]
[1766128833896,0.01135241,88087.0,88074.0,0.45254]
[1766128834127,0.23840077,88087.0,88074.0,0.45254]
[1766128834332,0.01715228,88088.0,88074.0,0.45254]
[1766128834536,0.01135267,88085.0,88074.0,0.45254]
[1766128834741,0.01135254,88086.0,88074.0,0.45254]
[1766128834942,0.01135241,88087.0,88074.0,0.45254]
[1766128835074,0.01135267,88085.0,88074.0,0.45254]
[1766128835918,0.01135254,88086.0,88074.0,0.45254]
[1766128836099,0.01135279,88084.0,88068.0,0.0058]
[1766128836522,0.01135305,88082.0,88068.0,0.48341]
[1766128836732,0.01135383,88076.0,88066.0,0.00036506]
[1766128836935,0.0058,88075.0,88066.0,0.00036506]
[1766128838906,0.2442333,88075.0,88066.0,0.00036506]
[1766128839249,0.01715395,88075.0,88066.0,0.00036506]
[1766128839626,0.01135421,88073.0,88066.0,0.00036506]
[1766128839823,0.01135447,88071.0,88066.0,0.00036506]
[1766128840145,0.01135434,88072.0,88058.0,0.47761]
[1766128840341,0.6137,88075.0,88058.0,0.47771956]
[1766128841194,0.62505395,88075.0,88058.0,0.47771956]
[1766128841394,0.01135408,88074.0,88058.0,0.47771956]
[1766128841596,0.62505395,88075.0,88058.0,0.47771956]
[1766128842363,0.01135421,88073.0,88058.0,0.47771956]
[1766128842559,0.01135434,88072.0,88058.0,0.47771956]
[1766128842783,0.0113546,88070.0,88058.0,0.47771956]
[1766128843010,0.0113546,88070.0,88039.0,0.0113586]
[1766128843011,0.03634567,88067.0,88046.0,0.47761]
[1766128843237,1.32932032,88056.0,88046.0,0.47761]
[1766128843426,0.0058,88055.0,88039.0,0.60134]
[1766128843801,0.0058,88055.0,88039.0,1.07895]
[1766128844010,0.0058,88055.0,88040.0,0.47761]
[1766128844464,0.00010942,88067.0,88041.0,0.59554]
[1766128844589,0.0058,88066.0,88055.0,0.478709]
[1766128845031,0.01135524,88065.0,88055.0,0.47761]
[1766128845234,0.0058,88066.0,88047.0,0.47761]
[1766128845435,0.01715512,88066.0,88049.0,0.47761]
[1766128845674,0.00010942,88067.0,88055.0,0.03634567]
[1766128845868,0.00010942,88067.0,88066.0,0.001099]
[1766128846223,0.00010942,88067.0,88059.0,0.47761]
[1766128846695,0.00010942,88067.0,88052.0,0.0058]
[1766128846899,0.00010942,88067.0,88053.0,0.47761]
[1766128848001,0.0058,88066.0,88053.0,0.47761]
[1766128848609,0.6079,88062.0,88052.0,0.0058]
[1766128848813,0.6079,88062.0,88047.0,0.0058]
[1766128849375,0.90719098,88063.0,88047.0,0.48341]
[1766128849578,0.0058,88066.0,88047.0,0.48341]
[1766128850021,0.6137,88066.0,88047.0,0.48341]
[1766128850421,0.6137,88066.0,88040.0,0.03634567]
[1766128850422,1.08357,88039.0,88004.0,0.0058]
[1766128850642,0.90719098,88030.0,88005.0,0.01136299]
[1766128850839,0.90719098,88030.0,88004.0,0.0058]
[1766128851102,0.90719098,88030.0,88004.0,0.01716311]
[1766128851229,0.90719098,88030.0,88004.0,0.0058]
[1766128851433,0.90719098,88030.0,88004.0,0.01716311]
[1766128851636,0.47567,88037.0,88012.0,0.01136208]
[1766128851873,0.47567,88037.0,88004.0,0.005909]
[1766128851874,0.0058,88036.0,88013.0,0.0058]
[1766128852186,0.0058,88036.0,88014.0,0.0058]
[1766128852387,0.0058,88036.0,88015.0,1.07315]
[1766128852589,0.0058,88036.0,88014.0,0.0058]
[1766128852892,0.90719098,88040.0,88016.0,0.01136157]
[1766128852893,0.0058,88035.0,88016.0,0.01136157]
[1766128853193,0.0058,88035.0,88014.0,0.0058]
[1766128853555,0.47567,88046.0,88026.0,0.23856444]
[1766128853774,0.0058,88045.0,88029.0,0.59554]
[1766128853956,0.0058,88045.0,88030.0,1.07315]
[1766128854359,0.0058,88045.0,88030.0,0.47761]
[1766128855075,0.90719098,88040.0,88023.0,0.0058]
[1766128855292,0.6079,88037.0,88023.0,0.0058]
[1766128855520,0.0058,88039.0,88011.0,0.47761]
[1766128855722,0.0058,88039.0,88010.0,0.04548]
[1766128855723,0.6079,88028.0,88012.0,0.0058]
[1766128855929,0.47567,88027.0,88012.0,0.0058]
[1766128856136,1.08357,88026.0,88012.0,0.0058]
[1766128856616,0.47567,88025.0,88012.0,0.0058]
[1766128856883,0.0058,88024.0,88012.0,0.0058]
[1766128857642,0.001099,88012.0,88004.0,0.000109]
[1766128858084,0.91299098,88014.0,88004.0,0.000109]
[1766128858085,0.0058,88014.0,88004.0,0.000109]
[1766128858287,0.0058,88014.0,87994.0,0.48341]
[1766128858288,0.47567,88013.0,87994.0,0.48341]
[1766128858528,0.47577932,88013.0,87994.0,0.48341]
[1766128859058,0.6079,88029.0,87994.0,0.0058]
[1766128859180,0.04548,88023.0,88001.0,1.07315]
[1766128859393,0.0058,88022.0,88002.0,0.59554]
[1766128859636,0.0058,88022.0,88001.0,1.07315]
[1766128859837,0.0058,88022.0,88001.0,0.0113635]
[1766128860098,0.90719098,88020.0,88005.0,0.59554]
[1766128860302,0.90719098,88020.0,88005.0,1.07315]
[1766128860781,0.0058,88021.0,88005.0,1.07315]
[1766128861221,0.6079,88014.0,88000.0,0.00510932]
[1766128861424,0.001099,88005.0,88000.0,0.00510932]
[1766128861551,0.0058,88006.0,88000.0,0.00510932]
[1766128861953,0.90719098,88020.0,88001.0,0.47761]
[1766128862370,0.0058,88019.0,88002.0,0.59554]
[1766128863933,0.0058,88019.0,88002.0,1.06778]
[1766128864221,0.90719098,88012.0,88000.0,0.00510932]
[1766128864409,0.0113626,88008.0,87986.0,0.56837]
[1766128864597,0.0001095,88008.0,87991.0,0.0058]
[1766128864920,0.0114721,88008.0,87991.0,0.0058]
[1766128865136,0.90719098,88001.0,87991.0,0.0058]
[1766128865423,0.0058,88005.0,87991.0,0.0058]
[1766128865784,1.35803098,88001.0,87986.0,0.0058]
[1766128865979,0.45084,88001.0,87986.0,0.0058]
[1766128867031,0.0058,88005.0,87987.0,0.56837]
[1766128867789,0.0058,88005.0,87989.0,0.56837]
[1766128867982,0.0058,88005.0,87991.0,0.56837]
[1766128868185,0.0001095,88008.0,87993.0,0.56837]
[1766128868385,0.0058,88007.0,87997.0,0.01136402]
[1766128868605,0.0058,88011.0,88000.0,0.56837]
[1766128868826,0.0058,88012.0,87999.0,0.45433]
[1766128869045,0.0058,88012.0,88000.0,0.56837]
[1766128872043,0.47782,88012.0,87993.0,0.47508]
[1766128872243,0.47782,88012.0,87994.0,1.06679]
[1766128872445,0.47782,88012.0,87995.0,0.59751]
[1766128872648,1.08018,88012.0,87994.0,0.46928]
[1766128872849,1.08018,88012.0,87994.0,0.48064441]
[1766128873054,0.48984355,88027.0,87995.0,0.01363713]
[1766128873258,0.0058,88026.0,88004.0,0.59751]
[1766128873460,0.47202,88025.0,88005.0,0.0058]
[1766128873691,0.60236,88024.0,88005.0,0.0058]
[1766128873938,0.0058,88026.0,88005.0,0.0058]
[1766128873939,0.47202,88022.0,88005.0,0.0058]
[1766128874142,0.47202,88022.0,88005.0,0.01716299]
[1766128874261,0.47782,88022.0,88005.0,0.0058]
[1766128874614,0.47202,88021.0,88005.0,0.0058]
[1766128874772,0.60816,88022.0,88005.0,0.0058]
[1766128874773,0.60236,88015.0,88005.0,0.0058]
[1766128875196,0.47202,88016.0,88005.0,0.0058]
[1766128876470,0.60236,88021.0,88005.0,0.0058]
[1766128877092,1.07438,88021.0,88005.0,0.0058]
[1766128877560,0.0058,88022.0,88000.0,1.06679]
[1766128877561,0.90719098,88020.0,88000.0,1.06679]
[1766128877799,0.47202,88018.0,88000.0,1.06679]
[1766128878431,0.60236,88017.0,87999.0,0.0058]
[1766128878608,0.47202,88015.0,87999.0,0.0058]
[1766128878795,0.47202,88014.0,87999.0,0.0058]
[1766128879193,1.07438,88014.0,87999.0,0.0058]
[1766128879414,0.60236,88012.0,87999.0,0.0058]
[1766128879732,0.47202,88011.0,87999.0,0.0058]
[1766128880096,0.60816,88018.0,87999.0,0.01716376]
[1766128880307,0.60816,88018.0,87999.0,0.0058]
[1766128880529,1.08018,88018.0,87999.0,0.0058]
[1766128881592,1.08018,88018.0,87999.0,0.47508]
[1766128881930,1.08018,88018.0,87999.0,1.08395376]
[1766128882427,1.08018,88018.0,88000.0,0.01136363]
[1766128882628,0.47202,88017.0,87999.0,0.0058]
[1766128885012,0.47202,88013.0,87993.0,0.0001095]
[1766128885231,0.47202,88006.0,87994.0,0.0058]
[1766128886084,0.0058,88010.0,87994.0,0.0058]
[1766128886449,0.0058,88010.0,87994.0,0.61467441]
[1766128886659,0.0058,88010.0,87996.0,0.01136415]
[1766128886875,0.0058,88010.0,87997.0,1.06679]
[1766128887257,0.0058,88010.0,87994.0,0.0058]
[1766128889203,0.47202,88009.0,87994.0,0.0058]
[1766128890007,0.47202,88009.0,87994.0,0.23308748]
[1766128890210,0.0058,88010.0,87997.0,1.07815402]
[1766128890408,0.0058,88010.0,87997.0,1.06679]
[1766128890610,0.47202,88021.0,87994.0,0.01716441]
[1766128890816,0.01646277,88020.0,88005.0,0.59751]
[1766128891030,0.03634567,88029.0,87993.0,0.0001095]
[1766128891031,0.09405378,88036.0,88012.0,0.01136208]
[1766128891267,0.09405378,88036.0,88010.0,0.46928]
[1766128891268,0.01066218,88035.0,88021.0,0.46928]
[1766128891478,0.01066218,88035.0,88020.0,0.01136105]
[1766128891479,0.02456383,88042.0,88025.0,1.06679]
[1766128891682,0.02455349,88042.0,88025.0,1.06679]
[1766128891879,0.0058,88047.0,88026.0,1.06679]
[1766128892252,0.01135821,88042.0,88027.0,0.0058]
[1766128892448,0.001099,88026.0,88015.0,0.46928]
[1766128892689,0.001099,88026.0,88016.0,0.0058]
[1766128892822,0.01136053,88024.0,88004.0,0.46928]
[1766128893030,0.60236,88017.0,88004.0,0.0058]
[1766128893411,0.0058,88027.0,88005.0,0.03634567]
[1766128893613,0.0058,88027.0,88006.0,0.59751]
[1766128893724,0.60816,88027.0,88006.0,1.06679]
[1766128893927,0.01716015,88027.0,88006.0,1.06679]
[1766128894331,0.01136027,88026.0,88009.0,0.45253]
[1766128894530,0.01716015,88027.0,88013.0,0.61245]
[1766128894531,0.0058,88027.0,88013.0,0.61245]
[1766128894645,0.0058,88027.0,88013.0,1.07078]
[1766128894853,0.01716015,88027.0,88013.0,1.069681]
[1766128895059,0.01136053,88024.0,88013.0,1.069681]
[1766128895263,0.90719098,88023.0,88013.0,0.457231]
[1766128896066,0.03634567,88021.0,88006.0,0.61245]
[1766128896279,0.2749252,88021.0,88007.0,0.0058]
[1766128896558,0.01136144,88017.0,88007.0,0.0058]
[1766128896808,0.01136144,88017.0,87999.0,0.61245]
[1766128896809,0.01136169,88015.0,88004.0,0.0058]
[1766128897023,0.01136208,88012.0,87998.0,0.0058]
[1766128897226,1.15159012,88014.0,87998.0,0.0058]
[1766128897227,0.9243528,88014.0,87998.0,0.0058]
[1766128897430,0.91299098,88014.0,87998.0,0.0058]
[1766128897601,0.91299098,88014.0,87991.0,0.61245]
[1766128897602,0.01136221,88011.0,87991.0,0.61245]
[1766128897808,0.4775,88013.0,87995.0,0.0058]
[1766128898146,0.0058,88014.0,87996.0,0.45253]
[1766128898378,0.01716182,88014.0,87996.0,0.45253]
[1766128898591,0.01136195,88013.0,87996.0,1.06498]
[1766128898850,0.0113626,88008.0,87995.0,0.0001095]
[1766128899068,0.0058,88008.0,87995.0,0.0059095]
[1766128899278,0.0058,88008.0,87995.0,0.0001095]
[1766128900361,0.0171626,88008.0,87995.0,0.0001095]
[1766128900566,0.01136273,88007.0,87995.0,0.0001095]
[1766128900805,0.62018,88005.0,87995.0,0.0001095]
[1766128901008,0.4775,88004.0,87988.0,0.0058]
[1766128901190,0.4775,88004.0,87988.0,0.00586221]
[1766128903346,0.62018,88003.0,87988.0,0.00586221]
[1766128903564,0.4775,88002.0,87988.0,0.00586221]
[1766128905123,1.09768,88002.0,87988.0,0.00586221]
[1766128905338,0.62018,88002.0,87988.0,0.00586221]
[1766128905704,0.4775,88000.0,87988.0,0.00586221]
[1766128906646,0.62018,88000.0,87988.0,0.00586221]
[1766128906846,0.4775,87998.0,87988.0,0.00586221]
[1766128907255,0.4775,87993.0,87988.0,2.21e-06]
[1766128907451,0.4775,87993.0,87985.0,2.21e-06]
[1766128907652,0.47760948,87993.0,87985.0,2.21e-06]
[1766128907938,1.09768,87992.0,87985.0,2.21e-06]
[1766128908258,0.00010948,87993.0,87992.0,0.001099]
[1766128908516,0.0058,88001.0,87989.0,0.67983113]
[1766128908671,0.0058,88008.0,87992.0,0.03634567]
[1766128908883,0.0058,88008.0,87993.0,0.0058]
[1766128909081,0.4775,88004.0,87993.0,0.0058]
[1766128909281,0.4775,88004.0,87984.0,0.0002]
[1766128909282,0.62018,87999.0,87986.0,0.0058]
[1766128909485,0.4775,87996.0,87986.0,0.00590948]
[1766128910652,0.4833,88009.0,87996.0,0.001099]
[1766128910854,0.4775,88008.0,87996.0,0.001099]
[1766128910992,0.62018,88006.0,87989.0,0.45253]
[1766128911194,0.4775,88007.0,87988.0,0.61245]
[1766128912351,0.4775,88005.0,87988.0,0.61245]
[1766128912562,0.62018,88000.0,87986.0,0.00590948]
[1766128912778,0.62018,87996.0,87986.0,0.00590948]
[1766128914312,0.4775,87999.0,87984.0,0.0002]
[1766128914541,0.62018,87994.0,87984.0,0.0002]
[1766128916317,0.00010952,87999.0,87987.0,0.45253]
[1766128918010,0.00010952,87999.0,87988.0,0.45833]
[1766128918311,0.00010952,87999.0,87991.0,0.46389479]
[1766128918515,0.00010952,87999.0,87992.0,0.0136376]
[1766128919113,0.62018,88010.0,87992.0,0.0136376]
[1766128919320,0.0058,88009.0,87996.0,0.45253]
[1766128919499,0.0058,88008.0,87996.0,0.45263952]
[1766128919702,0.0058,88008.0,87996.0,0.00010952]
[1766128919931,0.62018,88003.0,87988.0,0.0058]
[1766128920121,0.6202895,88003.0,87988.0,0.0058]
[1766128920698,0.6202895,88003.0,87988.0,0.01716518]
[1766128921717,0.6202895,88003.0,87989.0,0.01136505]
[1766128921918,0.6202895,88003.0,87993.0,0.22729027]
[1766128921919,0.0001095,88003.0,87993.0,0.22729027]
[1766128922123,0.4775,88014.0,87993.0,0.22729027]
[1766128922124,0.4775,88014.0,87998.0,0.45253]
[1766128922307,0.62018,88013.0,87999.0,0.00576]
[1766128922511,0.04552,88025.0,88017.0,0.01136144]
[1766128922512,0.62018,88025.0,88017.0,0.01136144]
[1766128922707,0.00576,88029.0,88021.0,0.01136092]
[1766128922925,0.00010956,88029.0,88022.0,0.01363295]
[1766128923128,0.00010956,88029.0,88018.0,0.00576]
[1766128923325,0.45491,88027.0,88004.0,0.01136311]
[1766128923551,0.45491,88027.0,87990.0,1.33257643]
[1766128923552,0.000989,88009.0,87994.0,0.04552]
[1766128923794,0.000989,88009.0,87999.0,0.00576]
[1766128923925,0.59721,88013.0,87999.0,0.00576]
[1766128924150,0.00576,88018.0,88000.0,0.00576]
[1766128924384,0.48221,88017.0,88001.0,0.49811]
[1766128924591,0.59111,88016.0,88001.0,0.49811]
[1766128926822,0.60247157,88016.0,88001.0,0.49811]
[1766128927023,0.59111,88016.0,88001.0,0.49811]
[1766128928569,0.60247157,88016.0,88001.0,0.49811]
[1766128928975,0.59111,88016.0,88001.0,0.49811]
[1766128929177,0.48221,88017.0,88001.0,0.49811]
[1766128929494,0.59111,88024.0,88003.0,0.47912]
[1766128929693,0.00576,88023.0,88005.0,0.47912]
[1766128930228,0.01136079,88022.0,88005.0,0.47912]
[1766128930432,0.59111,88020.0,88005.0,0.47912]
[1766128933226,0.00576,88019.0,88005.0,0.47912]
[1766128934034,0.00010956,88029.0,88014.0,0.47912]
[1766128934210,0.00586956,88029.0,88020.0,0.47912]
[1766128934449,0.00576,88031.0,88021.0,0.47912]
[1766128934690,0.00576,88031.0,88023.0,0.47912]
[1766128934982,0.00576,88031.0,88023.0,0.47922956]
[1766128935401,0.00576,88031.0,88023.0,0.47813056]
[1766128936403,0.59687,88031.0,88023.0,0.00010956]
[1766128936556,0.59111,88029.0,88023.0,0.00010956]
[1766128937361,0.00576,88031.0,88023.0,0.00010956]
[1766128939476,0.59111,88032.0,88023.0,0.00010956]
[1766128939694,0.04548,88041.0,88023.0,0.47922956]
[1766128939906,0.00576,88040.0,88023.0,0.47922956]
[1766128940699,0.00576,88039.0,88028.0,0.58176]
[1766128940909,0.00576,88039.0,88029.0,0.47912]
[1766128941855,0.03634567,88050.0,88030.0,0.58176]
[1766128942060,0.0163995,88049.0,88033.0,0.47912]
[1766128942261,0.00576,88049.0,88033.0,0.47912]
[1766128942825,0.1116348,88056.0,88023.0,0.01147022]
[1766128942826,0.59111,88058.0,88038.0,0.58176]
[1766128942961,0.04090739,88057.0,88041.0,0.47912]
[1766128943183,0.01063761,88056.0,88041.0,0.47912]
[1766128944361,0.00576,88055.0,88041.0,0.47912]
[1766128945189,0.00576,88055.0,88042.0,0.47912]
[1766128945382,0.01781745,88062.0,88033.0,0.00576]
[1766128945383,0.01781745,88062.0,88035.0,0.58176]
[1766128945587,0.01639234,88061.0,88048.0,0.58176]
[1766128945803,0.00576,88060.0,88049.0,0.47912]
[1766128946860,0.62745567,88065.0,88049.0,0.47912]
[1766128947080,0.62745567,88065.0,88049.0,0.49047731]
[1766128947081,0.00576,88062.0,88049.0,0.49047731]
[1766128947417,0.00576,88062.0,88054.0,0.47912]
[1766128947770,0.01781551,88076.0,88052.0,0.49047692]
[1766128947771,0.00576,88063.0,88052.0,0.49047692]
[1766128947969,0.00576,88063.0,88054.0,1.06088]
[1766128948150,0.00576,88063.0,88055.0,0.49274784]
[1766128948358,0.00576,88063.0,88055.0,0.47824534]
[1766128948591,0.00586952,88063.0,88055.0,0.47824534]
[1766128949375,0.00010952,88063.0,88055.0,0.47824534]
[1766128949566,0.00576,88067.0,88055.0,0.58176]
[1766128950234,0.03634567,88065.0,88048.0,0.58752]
[1766128950446,0.03634567,88065.0,88048.0,0.58762952]
[1766128950646,0.03634567,88065.0,88049.0,0.47912]
[1766128951051,0.03634567,88065.0,88050.0,0.47912]
[1766128952596,0.62745567,88065.0,88050.0,0.47912]
[1766128953955,0.03634567,88065.0,88050.0,0.58176]
[1766128954155,0.00576,88067.0,88052.0,0.47912]
[1766128954386,0.00576,88067.0,88053.0,0.61232]
[1766128954533,0.00576,88067.0,88054.0,0.40147]
[1766128954730,0.00576,88067.0,88055.0,0.40147]
[1766128954929,0.00576,88067.0,88057.0,0.40147]
[1766128955154,0.03634567,88065.0,88050.0,0.61232]
[1766128955375,0.001099,88057.0,88048.0,0.00010952]
[1766128955550,0.38837,88048.0,88036.0,0.00576]
[1766128955765,0.37685,88044.0,88017.0,0.08182567]
[1766128955969,0.37685,88038.0,88018.0,0.00576]
[1766128956174,0.58908,88035.0,88025.0,0.0113604]
[1766128956377,0.58908,88035.0,88022.0,0.22721517]
[1766128956579,0.00576,88039.0,88026.0,0.01136027]
[1766128956782,0.01781786,88060.0,88034.0,0.61232]
[1766128957039,0.00576,88059.0,88041.0,0.62367834]
[1766128957220,0.00576,88059.0,88041.0,0.61232]
[1766128957757,0.00576,88059.0,88042.0,0.40147]
[1766128957930,0.00576,88059.0,88039.0,0.40147]
[1766128958130,0.59484,88059.0,88039.0,0.40147]
[1766128958705,0.59484,88059.0,88031.0,0.03634567]
[1766128958706,0.00576,88059.0,88046.0,0.22715398]
[1766128958905,0.00576,88059.0,88049.0,0.40147]
[1766128959284,0.00576,88062.0,88052.0,0.40147]
[1766128959619,0.00576,88062.0,88052.0,0.41282692]
[1766128959820,0.00586946,88062.0,88052.0,0.40147]
[1766128960036,0.00576,88066.0,88057.0,0.40147]
[1766128964268,0.00576,88066.0,88057.0,0.41282628]
[1766128964531,0.02449387,88073.0,88058.0,0.01135615]
[1766128964838,0.03634567,88079.0,88055.0,0.85080617]
[1766128964839,0.01639078,88072.0,88062.0,0.40147]
[1766128964971,0.00576,88072.0,88062.0,0.40147]
[1766128965179,0.00576,88072.0,88062.0,0.400371]
[1766128966401,0.0106327,88071.0,88062.0,0.400371]
[1766128967402,0.0106327,88071.0,88055.0,0.00576]
[1766128967605,0.0106327,88071.0,88059.0,0.61232]
[1766128967937,0.0106327,88071.0,88062.0,0.40147]
[1766128968159,0.10631938,88079.0,88057.0,0.01135628]
[1766128968160,0.02449371,88079.0,88071.0,0.402569]
[1766128968367,0.58908,88082.0,88071.0,0.001099]
[1766128968538,0.31559,88080.0,88063.0,0.00576]
[1766128968739,0.58908,88079.0,88063.0,0.00576]
[1766128968941,0.58908,88077.0,88063.0,0.00576]
[1766128969142,0.02449371,88076.0,88063.0,0.00576]
[1766128969907,0.58908,88077.0,88063.0,0.00576]
[1766128971942,0.00576,88078.0,88065.0,0.61232]
[1766128972137,0.00576,88078.0,88066.0,0.40147]
[1766128972771,0.00576,88078.0,88063.0,0.00576]
[1766128972772,0.58908,88077.0,88063.0,0.00576]
[1766128974175,0.06137054,88089.0,88063.0,0.00576]
[1766128974176,0.05001839,88089.0,88063.0,0.00576]
[1766128974549,0.28281,88086.0,88065.0,0.61232]
[1766128974719,0.58908,88082.0,88063.0,0.00576]
[1766128974931,0.58908,88082.0,88064.0,0.61232]
[1766128975260,0.58908,88082.0,88067.0,0.40147]
[1766128976863,0.28171,88083.0,88067.0,0.61232]
[1766128977077,0.58908,88087.0,88070.0,0.40147]
[1766128978287,0.58908,88086.0,88070.0,0.40147]
[1766128978464,0.58908,88085.0,88070.0,0.40147]
[1766128981586,0.001099,88070.0,88032.0,0.1478]
[1766128981730,0.58908,88059.0,88045.0,0.04770349]
[1766128981936,0.58908,88059.0,88046.0,0.01711769]
[1766128982135,0.58908,88059.0,88046.0,0.00576]
[1766128982348,0.58908,88056.0,88046.0,0.00576]
[1766128982555,0.58908,88051.0,88041.0,0.00576]
[1766128982980,0.58908,88051.0,88041.0,0.00586946]
[1766128983299,0.58908,88051.0,88042.0,0.01135821]
[1766128983524,0.58908,88051.0,88041.0,0.0172278]
[1766128983956,0.58908,88051.0,88041.0,0.00586946]
[1766128985274,0.00576,88056.0,88043.0,0.01135808]
[1766128985465,0.00576,88056.0,88041.0,0.00586946]
[1766128985638,0.57343,88054.0,88041.0,0.00586946]
[1766128987675,0.57343,88052.0,88041.0,0.00586946]
[1766128987849,0.57343,88048.0,88039.0,0.05124]
[1766128988070,0.57343,88048.0,88039.0,0.00576]
[1766128988275,0.57343,88046.0,88027.0,0.04548]
[1766128988474,0.91298345,88050.0,88027.0,0.04548]
[1766128988475,0.57343,88042.0,88028.0,0.00576]
[1766128988659,0.57343,88042.0,88029.0,0.01711989]
[1766128988860,0.57343,88042.0,88029.0,0.00576]
[1766128991174,0.00576,88047.0,88029.0,0.00576]
[1766128991175,0.57343,88039.0,88029.0,0.00576]
[1766128991682,0.57343,88038.0,88029.0,0.00576]
[1766128992681,0.57343,88038.0,88025.0,0.00576]
[1766128993080,0.57343,88038.0,88026.0,0.0249926]
[1766128993283,0.57919,88041.0,88026.0,0.01136027]
[1766128993497,0.57919,88041.0,88025.0,0.00576]
[1766128994355,0.73791,88040.0,88025.0,0.00576]
[1766128994695,0.57343,88039.0,88025.0,0.00576]
[1766128994944,0.05001839,88030.0,87997.0,0.04548]
[1766128995073,0.23855307,88031.0,87997.0,0.04548]
[1766128995074,0.12602,88018.0,87997.0,0.04548]
[1766128995276,0.69945,88013.0,87998.0,0.00576]
[1766128995476,0.57343,88013.0,87998.0,0.00576]
[1766128995681,0.00576,88017.0,87998.0,0.00576]
[1766128995682,0.6977,88011.0,87998.0,0.00576]
[1766128995879,0.70346,88011.0,87998.0,0.00576]
[1766128996080,0.12427,88008.0,87995.0,0.00576]
[1766128996283,0.57343,88005.0,87995.0,0.00010956]
[1766128996726,0.57343,88010.0,87995.0,0.00010956]
[1766128997300,0.68792,88010.0,87995.0,0.00010956]
[1766128997976,0.57343,88006.0,87995.0,0.00010956]
[1766128998188,0.11009,88003.0,87993.0,0.00576]
[1766128998394,0.57343,88002.0,87993.0,0.0001095]
[1766128999597,0.00576,88005.0,88002.0,0.001099]
[1766128999819,0.00576,88005.0,87993.0,0.0001095]
[1766128999820,0.00576,88005.0,87995.0,0.01136428]
[1766129000006,0.00576,88005.0,87996.0,0.01363698]
[1766129000937,0.004661,88005.0,87994.0,0.01136441]
[1766129001135,0.004661,88005.0,87995.0,0.01363713]
[1766129001462,0.57343,88002.0,87993.0,0.0001095]
[1766129001793,0.57343,87994.0,87986.0,0.00576]
[1766129001974,0.57353936,87994.0,87986.0,0.00576]
[1766129002395,0.00010936,87994.0,87986.0,0.00576]
[1766129004362,0.65686936,87994.0,87980.0,0.04548]
[1766129004519,0.57343,87989.0,87981.0,0.00576]
[1766129005566,0.57343,87989.0,87975.0,0.00576]
[1766129006319,0.08919936,87994.0,87971.0,0.35856738]
[1766129006320,0.001099,87975.0,87971.0,0.10028911]
[1766129006493,0.00032556,87975.0,87966.0,0.10028911]
[1766129006714,0.57343,87981.0,87962.0,0.35296]
[1766129006715,0.6421,87981.0,87964.0,0.10053743]
[1766129006890,0.6421,87981.0,87964.0,0.00024832]
[1766129007551,0.01136466,87992.0,87964.0,0.00024832]
[1766129007552,0.00010936,87994.0,87981.0,0.000774]
[1766129007752,0.00576,87990.0,87981.0,0.000774]
[1766129007942,0.00576,87990.0,87978.0,0.3472]
[1766129008128,0.00576,87990.0,87980.0,0.95998]
[1766129008328,0.00576,87990.0,87980.0,0.3472]
[1766129009139,0.00576,87990.0,87976.0,0.00576]